[Event "43rd Indian-chT 2023-24"]
[Site "Dharamsala"]
[Date "2024.03.30"]
[Round "3.2"]
[White "Ghosh, Diptayan"]
[Black "Swarna Nihal"]
[Result "1-0"]
[ECO "A35"]
[WhiteElo "2559"]
[BlackElo "2003"]
[Annotator "RC"]
[PlyCount "63"]
[EventDate "2024.03.28"]
[EventType "team-tourn"]
[EventCountry "IND"]
[SourceTitle "playchess.com"]
[Source "ChessBase"]
[SourceQuality "1"]
[TimeControl "5400+30"]

1. Nf3 {[%emt 0:00:58]} c5 {[%emt 0:00:07]} 2. c4 {[%emt 0:00:13]} Nc6 {[%emt 0:00:29]} 3. Nc3 {[%emt 0:00:27]} g6 {[%emt 0:00:33]} 4. e3 {[%emt 0:00:06]} Nf6 {[%emt 0:00:50]} 5. d4 {[%emt 0:00:05]} cxd4 {[%emt 0:00:10]} 6. exd4 {[%emt 0:00:05]} d5 {[%emt 0:00:07]} 7. cxd5 {[%emt 0:00:29]} Nxd5 {[%emt 0:00:07]} 8. Qb3 {[%emt 0:00:20]} Nxc3 {[%emt 0:00:06]} 9. Bc4 {[%emt 0:00:09]} Nd5 {[%emt 0:00:06]} 10. Bxd5 {[%emt 0:00:04]} e6 {[%emt 0:00:06]} 11. Bxc6+ {[%emt 0:00:03]} bxc6 {[%emt 0:00:05]} 12. O-O {[%emt 0:00:20]} Qd5 {[%emt 0:01:13]} 13. Qc2 {[%emt 0:05:47]} f6 {[%emt 0:08:17]} 14. Re1 {[%emt 0:10:09]} Kf7 {[%emt 0:15:39]} 15. b3 {[%emt 0:04:14]} Bd6 {[%emt 0:02:05]} 16. Bb2 {[%emt 0:09:23]} Bb7 {[%emt 0:19:46]} 17. Rad1 {[%emt 0:03:19]} Rad8 {[%emt 0:04:05]} 18. Qc1 {[%emt 0:04:32]} Bb4 {[%emt 0:27:05]} 19. Bc3 {[%emt 0:23:42]} Bxc3 {[%emt 0:09:31]} 20. Qxc3 {[%emt 0:00:24]} g5 {[%emt 0:00:35]} 21. Qe3 {[%emt 0:11:36]} h5 {[%emt 0:02:08]} 22. Rc1 {[%emt 0:01:09]} Qf5 {[%emt 0:00:05]} 23. Nd2 {[%emt 0:02:01]} h4 {[%emt 0:04:16]} 24. Ne4 {[%emt 0:04:34]} Rd5 {[%emt 0:02:43]} 25. Rc4 {[%emt 0:08:06]} a5 {[%emt 0:01:11]} 26. Nc3 {[%emt 0:01:31]} Rd6 {[%emt 0:00:42]} 27. Rc5 {[%emt 0:00:16]} Qg4 {[%emt 0:01:03]} 28. Ne4 {[%emt 0:00:44]} Rd7 {[%emt 0:00:18]} 29. Nxg5+ {[%emt 0:00:53]} Kg6 {[%emt 0:00:58]} 30. Nxe6 {[%emt 0:00:43]} h3 {[%emt 0:00:12]} 31. Nf4+ {[%emt 0:00:22]} Kf7 {[%emt 0:00:23]} 32. f3 {[%emt 0:00:20]} 1-0

[Event "43rd Indian-chT 2023-24"]
[Site "Dharamsala"]
[Date "2024.03.30"]
[Round "3.3"]
[White "Srinivasa Rao, M.."]
[Black "Visakh N R"]
[Result "0-1"]
[ECO "A09"]
[WhiteElo "2059"]
[BlackElo "2521"]
[Annotator "RC"]
[PlyCount "104"]
[EventDate "2024.03.28"]
[EventType "team-tourn"]
[EventCountry "IND"]
[SourceTitle "playchess.com"]
[Source "ChessBase"]
[SourceQuality "1"]
[TimeControl "5400+30"]

1. Nf3 {[%emt 0:00:08]} Nf6 {[%emt 0:00:13]} 2. c4 {[%emt 0:00:13]} e6 {[%emt 0:00:06]} 3. g3 {[%emt 0:00:13]} d5 {[%emt 0:00:07]} 4. Bg2 {[%emt 0:00:08]} d4 {[%emt 0:00:55]} 5. O-O {[%emt 0:00:15]} c5 {[%emt 0:00:41]} 6. d3 {[%emt 0:00:07]} Nc6 {[%emt 0:00:30]} 7. e3 {[%emt 0:00:07]} Bd6 {[%emt 0:01:16]} 8. exd4 {[%emt 0:03:26]} cxd4 {[%emt 0:00:02]} 9. a3 {[%emt 0:00:20]} a5 {[%emt 0:07:04]} 10. b4 {[%emt 0:02:09]} axb4 {[%emt 0:00:18]} 11. Bb2 {[%emt 0:00:06]} O-O {[%emt 0:01:14]} 12. Re1 {[%emt 0:03:46]} e5 {[%emt 0:04:10]} 13. c5 {[%emt 0:01:55]} Bxc5 {[%emt 0:01:33]} 14. Nxe5 {[%emt 0:00:29]} Nxe5 {[%emt 0:02:20]} 15. Rxe5 {[%emt 0:00:07]} Qd6 {[%emt 0:03:32]} 16. Rxc5 {[%emt 0:07:28]} Qxc5 {[%emt 0:00:14]} 17. axb4 {[%emt 0:00:07]} Qxb4 {[%emt 0:09:16]} 18. Rxa8 {[%emt 0:00:08]} Qxb2 {[%emt 0:00:02]} 19. Nd2 {[%emt 0:00:11]} Be6 {[%emt 0:07:54]} 20. Rxf8+ {[%emt 0:02:50]} Kxf8 {[%emt 0:00:03]} 21. Qe1 {[%emt 0:01:56]} Qb4 {[%emt 0:06:15]} 22. Nf3 {[%emt 0:00:39]} Qxe1+ {[%emt 0:02:00]} 23. Nxe1 {[%emt 0:00:06]} Bd5 {[%emt 0:04:11]} 24. Nc2 {[%emt 0:00:10]} Bxg2 {[%emt 0:01:39]} 25. Kxg2 {[%emt 0:00:06]} Nd7 {[%emt 0:00:02]} 26. Kf3 {[%emt 0:04:12]} Nc5 {[%emt 0:00:38]} 27. Nxd4 {[%emt 0:02:55]} Nxd3 {[%emt 0:00:02]} 28. Ke3 {[%emt 0:00:07]} Nc5 {[%emt 0:00:22]} 29. Nf5 {[%emt 0:00:56]} g6 {[%emt 0:00:23]} 30. Nd6 {[%emt 0:00:32]} Ke7 {[%emt 0:00:31]} 31. Nb5 {[%emt 0:00:11]} Kd7 {[%emt 0:08:22]} 32. Kd4 {[%emt 0:02:20]} Ne6+ {[%emt 0:01:55]} 33. Ke5 {[%emt 0:01:21]} Nc7 {[%emt 0:00:09]} 34. Nc3 {[%emt 0:01:37]} Ke7 {[%emt 0:01:12]} 35. h4 {[%emt 0:07:21]} h5 {[%emt 0:05:32]} 36. f3 {[%emt 0:00:00]} f6+ {[%emt 0:02:26]} 37. Kd4 {[%emt 0:00:00]} Ne6+ {[%emt 0:03:53]} 38. Ke4 {[%emt 0:00:00]} Kd6 {[%emt 0:05:00]} 39. g4 {[%emt 0:00:00]} Ng7 {[%emt 0:00:02]} 40. Kf4 {[%emt 0:07:43]} b6 {[%emt 0:02:35]} 41. Ne4+ {[%emt 0:01:10]} Ke7 {[%emt 0:00:18]} 42. Nc3 {[%emt 0:00:15]} Ne6+ {[%emt 0:00:28]} 43. Ke4 {[%emt 0:00:21]} Kd6 {[%emt 0:00:19]} 44. Nb5+ {[%emt 0:01:21]} Kc5 {[%emt 0:01:36]} 45. Na3 {[%emt 0:10:04]} Ng7 {[%emt 0:02:38]} 46. Nb1 {[%emt 0:02:30]} b5 {[%emt 0:01:53]} 47. Nd2 {[%emt 0:00:07]} b4 {[%emt 0:01:09]} 48. Nb3+ {[%emt 0:00:18]} Kc4 {[%emt 0:00:25]} 49. Na5+ {[%emt 0:00:05]} Kc3 {[%emt 0:02:17]} 50. Ke3 {[%emt 0:06:04]} b3 {[%emt 0:01:01]} 51. Nxb3 {[%emt 0:00:06]} Kxb3 {[%emt 0:00:02]} 52. Kd4 {[%emt 0:00:42]} Kc2 {[%emt 0:00:42]} 0-1

[Event "43rd Indian-chT 2023-24"]
[Site "Dharamsala"]
[Date "2024.03.30"]
[Round "3.4"]
[White "Neelash Saha"]
[Black "Sathwik D S S U"]
[Result "1-0"]
[ECO "D45"]
[WhiteElo "2463"]
[BlackElo "1783"]
[Annotator "ChessBase"]
[PlyCount "61"]
[EventDate "2024.03.28"]
[EventType "team-tourn"]
[EventCountry "IND"]
[SourceTitle "playchess.com"]
[Source "ChessBase"]
[SourceQuality "1"]
[TimeControl "5400+30"]

1. d4 {[%emt 0:00:05]} d5 {[%emt 0:01:07]} 2. c4 {[%emt 0:00:22]} c6 {[%emt 0:00:07]} 3. Nf3 {[%emt 0:00:18]} Nf6 {[%emt 0:00:08]} 4. e3 {[%emt 0:00:28]} e6 {[%emt 0:00:15]} 5. Qc2 {[%emt 0:00:58]} Nbd7 {[%emt 0:01:34]} 6. b3 {[%emt 0:00:42]} b6 {[%emt 0:05:54]} 7. Bd3 {[%emt 0:03:22]} Bd6 {[%emt 0:00:45]} 8. Bb2 {[%emt 0:00:13]} Bb7 {[%emt 0:02:50]} 9. O-O {[%emt 0:01:01]} O-O {[%emt 0:00:12]} 10. Nc3 {[%emt 0:01:34]} Re8 {[%emt 0:22:02]} 11. Rad1 {[%emt 0:02:46]} Qc7 {[%emt 0:02:15]} 12. h3 {[%emt 0:06:23]} Rad8 {[%emt 0:12:25]} 13. Qb1 {[%emt 0:01:30]} h6 {[%emt 0:03:11]} 14. Rc1 {[%emt 0:04:56]} Qb8 {[%emt 0:01:41]} 15. Rfd1 {[%emt 0:00:05]} e5 {[%emt 0:09:11]} 16. cxd5 {[%emt 0:01:07]} cxd5 {[%emt 0:00:03]} 17. dxe5 {[%emt 0:02:16]} Nxe5 {[%emt 0:00:23]} 18. Nxe5 {[%emt 0:07:12]} Bxe5 {[%emt 0:00:04]} 19. Ne2 {[%emt 0:01:21]} Ne4 {[%emt 0:03:31]} 20. Bxe5 {[%emt 0:01:16]} Rxe5 {[%emt 0:02:19]} 21. Nd4 {[%emt 0:01:02]} Rde8 {[%emt 0:12:46]} 22. Qb2 {[%emt 0:02:35]} a6 {[%emt 0:04:08]} 23. f4 {[%emt 0:08:47]} R5e6 {[%emt 0:08:02]} 24. Nxe6 {[%emt 0:00:57]} Rxe6 {[%emt 0:00:03]} 25. Qd4 {[%emt 0:01:06]} Nc5 {[%emt 0:01:44]} 26. Bf5 {[%emt 0:02:37]} Re7 {[%emt 0:01:35]} 27. b4 {[%emt 0:00:25]} Nd7 {[%emt 0:02:39]} 28. Bxd7 {[%emt 0:01:15]} Rxd7 {[%emt 0:00:03]} 29. Qxb6 {[%emt 0:00:21]} Rd6 {[%emt 0:00:46]} 30. Qc7 {[%emt 0:00:09]} Qxc7 {[%emt 0:00:04]} 31. Rxc7 {[%emt 0:00:05]} 1-0

[Event "43rd Indian-chT 2023-24"]
[Site "Dharamsala"]
[Date "2024.03.30"]
[Round "3.5"]
[White "Shyaamnikhil P"]
[Black "Vrashank Chouhan"]
[Result "1-0"]
[ECO "C01"]
[WhiteElo "2405"]
[BlackElo "2330"]
[Annotator "ChessBase"]
[PlyCount "85"]
[EventDate "2024.03.28"]
[EventType "team-tourn"]
[EventCountry "IND"]
[SourceTitle "playchess.com"]
[Source "ChessBase"]
[SourceQuality "1"]
[TimeControl "5400+30"]

1. e4 {[%emt 0:00:08]} e6 {[%emt 0:00:15]} 2. d4 {[%emt 0:03:21]} d5 {[%emt 0:00:10]} 3. Nc3 {[%emt 0:00:13]} Bb4 {[%emt 0:00:09]} 4. exd5 {[%emt 0:00:57]} exd5 {[%emt 0:00:10]} 5. Bd3 {[%emt 0:00:04]} Ne7 {[%emt 0:00:14]} 6. a3 {[%emt 0:01:23]} Bxc3+ {[%emt 0:00:42]} 7. bxc3 {[%emt 0:00:05]} Bf5 {[%emt 0:01:01]} 8. Ne2 {[%emt 0:01:48]} O-O {[%emt 0:03:53]} 9. O-O {[%emt 0:00:50]} Bxd3 {[%emt 0:04:56]} 10. cxd3 {[%emt 0:00:52]} Nbc6 {[%emt 0:01:57]} 11. Nf4 {[%emt 0:07:03]} Qd7 {[%emt 0:02:27]} 12. Qf3 {[%emt 0:01:55]} Rad8 {[%emt 0:02:40]} 13. Ra2 {[%emt 0:06:26]} Qf5 {[%emt 0:06:52]} 14. h4 {[%emt 0:16:36]} Rd6 {[%emt 0:07:42]} 15. g4 {[%emt 0:01:30]} Rg6 {[%emt 0:17:29]} 16. g5 {[%emt 0:00:20]} h6 {[%emt 0:00:04]} 17. Qg3 {[%emt 0:00:57]} Rd6 {[%emt 0:00:06]} 18. Re2 {[%emt 0:04:24]} hxg5 {[%emt 0:07:06]} 19. hxg5 {[%emt 0:01:09]} Ng6 {[%emt 0:00:08]} 20. Kg2 {[%emt 0:18:51]} Nxf4+ {[%emt 0:11:26]} 21. Bxf4 {[%emt 0:00:11]} Rg6 {[%emt 0:00:03]} 22. Rh1 {[%emt 0:05:01]} f6 {[%emt 0:13:57]} 23. Qh3 {[%emt 0:04:48]} fxg5 {[%emt 0:11:02]} 24. Qxf5 {[%emt 0:00:22]} Rff6 {[%emt 0:00:07]} 25. Bxc7 {[%emt 0:00:26]} Rxf5 {[%emt 0:02:20]} 26. Re5 Rh6 27. Re8+ {[%emt 0:01:58]} Kf7 {[%emt 0:02:55]} 28. Rhe1 {[%emt 0:00:09]} Rhf6 {[%emt 0:00:16]} 29. Bg3 {[%emt 0:01:19]} Rf3 {[%emt 0:00:55]} 30. R8e3 {[%emt 0:00:28]} g4 {[%emt 0:01:38]} 31. a4 {[%emt 0:10:05]} R6f5 {[%emt 0:01:16]} 32. Rh1 {[%emt 0:00:58]} Rxe3 {[%emt 0:01:48]} 33. fxe3 {[%emt 0:00:06]} Ne7 {[%emt 0:00:27]} 34. e4 {[%emt 0:04:06]} Rf3 {[%emt 0:00:12]} 35. Rf1 {[%emt 0:00:08]} Rxf1 {[%emt 0:01:01]} 36. Kxf1 {[%emt 0:00:05]} dxe4 {[%emt 0:00:33]} 37. dxe4 {[%emt 0:00:05]} Nc6 {[%emt 0:00:29]} 38. Ke2 {[%emt 0:00:30]} a6 {[%emt 0:00:23]} 39. Bc7 {[%emt 0:02:32]} Kf6 {[%emt 0:00:35]} 40. Ke3 {[%emt 0:00:27]} b5 {[%emt 0:00:19]} 41. axb5 {[%emt 0:00:51]} axb5 {[%emt 0:00:01]} 42. d5 {[%emt 0:00:35]} Ne5 {[%emt 0:00:28]} 43. Bxe5+ {[%emt 0:00:54]} 1-0

[Event "43rd Indian-chT 2023-24"]
[Site "Dharamsala"]
[Date "2024.03.30"]
[Round "3.6"]
[White "Pranay Chordia"]
[Black "Vignesh N R"]
[Result "0-1"]
[ECO "A45"]
[WhiteElo "1796"]
[BlackElo "2525"]
[Annotator "RC"]
[PlyCount "90"]
[EventDate "2024.03.28"]
[EventType "team-tourn"]
[EventCountry "IND"]
[SourceTitle "playchess.com"]
[Source "ChessBase"]
[SourceQuality "1"]
[TimeControl "5400+30"]

1. d4 {[%emt 0:00:38]} Nf6 {[%emt 0:00:05]} 2. Bf4 {[%emt 0:00:04]} g6 {[%emt 0:00:05]} 3. Nc3 {[%emt 0:00:04]} d5 {[%emt 0:00:04]} 4. e3 {[%emt 0:00:45]} Bg7 {[%emt 0:00:09]} 5. h4 {[%emt 0:00:19]} h5 {[%emt 0:00:18]} 6. Be2 {[%emt 0:01:29]} O-O {[%emt 0:00:37]} 7. Nf3 {[%emt 0:00:04]} c5 {[%emt 0:01:34]} 8. dxc5 {[%emt 0:01:13]} Qa5 {[%emt 0:01:39]} 9. O-O {[%emt 0:01:43]} Qxc5 {[%emt 0:00:55]} 10. Nb5 {[%emt 0:01:13]} Na6 {[%emt 0:10:53]} 11. c3 {[%emt 0:07:40]} Bd7 {[%emt 0:00:07]} 12. Nbd4 {[%emt 0:05:28]} Qb6 {[%emt 0:02:05]} 13. Qb3 {[%emt 0:06:55]} Nc5 {[%emt 0:00:27]} 14. Qxb6 {[%emt 0:06:50]} axb6 {[%emt 0:00:37]} 15. Ne5 {[%emt 0:05:26]} Rfc8 {[%emt 0:00:05]} 16. Rfc1 {[%emt 0:06:03]} Be8 {[%emt 0:03:37]} 17. b4 {[%emt 0:09:02]} Nce4 {[%emt 0:07:24]} 18. c4 {[%emt 0:01:29]} Ra3 {[%emt 0:05:18]} 19. cxd5 {[%emt 0:05:27]} Rxa2 {[%emt 0:07:59]} 20. Rxc8 {[%emt 0:05:42]} Rxa1+ {[%emt 0:00:03]} 21. Kh2 {[%emt 0:00:03]} Nxf2 {[%emt 0:02:16]} 22. Bb5 {[%emt 0:09:33]} Rh1+ {[%emt 0:07:05]} 23. Kg3 {[%emt 0:00:02]} N2e4+ {[%emt 0:00:13]} 24. Kf3 {[%emt 0:00:01]} Nd6 {[%emt 0:00:06]} 25. Rb8 {[%emt 0:00:40]} Nxb5 {[%emt 0:17:09]} 26. Nxb5 {[%emt 0:00:10]} Kh7 {[%emt 0:01:09]} 27. Nc7 {[%emt 0:04:30]} Ba4 {[%emt 0:00:08]} 28. g3 {[%emt 0:02:19]} Rh2 {[%emt 0:04:48]} 29. e4 {[%emt 0:05:52]} Bd1+ {[%emt 0:06:16]} 30. Ke3 {[%emt 0:00:02]} Re2+ {[%emt 0:01:40]} 31. Kd3 {[%emt 0:00:12]} Ra2 {[%emt 0:04:31]} 32. Ne8 {[%emt 0:06:19]} Bc2+ {[%emt 0:01:29]} 33. Ke3 {[%emt 0:00:27]} Nxe4 {[%emt 0:02:06]} 34. Nxg7 {[%emt 0:01:18]} Kxg7 {[%emt 0:00:18]} 35. Rxb7 {[%emt 0:00:07]} Nd6 {[%emt 0:00:48]} 36. Rc7 {[%emt 0:04:20]} Nf5+ {[%emt 0:00:57]} 37. Kd2 {[%emt 0:02:22]} Be4+ {[%emt 0:00:13]} 38. Kc1 {[%emt 0:00:03]} Bxd5 {[%emt 0:01:07]} 39. Nc6 Re2 {[%emt 0:01:28]} 40. Na7 {[%emt 0:02:59]} Nd4 {[%emt 0:00:47]} 41. Nc8 {[%emt 0:00:37]} Ne6 {[%emt 0:02:51]} 42. Rxe7 {[%emt 0:00:55]} Nxf4 {[%emt 0:00:05]} 43. gxf4 {[%emt 0:00:03]} Rxe7 {[%emt 0:00:18]} 44. Nxe7 {[%emt 0:00:02]} Bb7 {[%emt 0:00:25]} 45. Kd2 {[%emt 0:01:02]} Kf8 {[%emt 0:00:11]} 0-1

[Event "43rd Indian-chT 2023-24"]
[Site "Dharamsala"]
[Date "2024.03.30"]
[Round "3.7"]
[White "Das, Sayantan"]
[Black "Dakshita Kumawat"]
[Result "1-0"]
[ECO "A20"]
[WhiteElo "2502"]
[BlackElo "1854"]
[Annotator "RC"]
[PlyCount "73"]
[EventDate "2024.03.28"]
[EventType "team-tourn"]
[EventCountry "IND"]
[SourceTitle "playchess.com"]
[Source "ChessBase"]
[SourceQuality "1"]
[TimeControl "5400+30"]

1. c4 {[%emt 0:00:54]} e5 {[%emt 0:00:42]} 2. g3 {[%emt 0:00:33]} Nf6 {[%emt 0:01:10]} 3. Bg2 {[%emt 0:00:10]} c6 {[%emt 0:01:38]} 4. Nf3 {[%emt 0:04:11]} e4 {[%emt 0:03:19]} 5. Nd4 {[%emt 0:00:12]} d5 {[%emt 0:01:21]} 6. cxd5 {[%emt 0:00:28]} cxd5 {[%emt 0:00:39]} 7. d3 {[%emt 0:03:39]} Bb4+ {[%emt 0:08:40]} 8. Bd2 {[%emt 0:05:43]} Bxd2+ {[%emt 0:01:10]} 9. Qxd2 {[%emt 0:02:45]} O-O {[%emt 0:02:06]} 10. Nc3 {[%emt 0:01:02]} exd3 {[%emt 0:02:29]} 11. Qxd3 {[%emt 0:00:15]} Nc6 {[%emt 0:00:05]} 12. O-O {[%emt 0:02:04]} Qb6 {[%emt 0:04:58]} 13. Nb3 {[%emt 0:04:10]} Be6 {[%emt 0:00:36]} 14. Na4 {[%emt 0:02:01]} Qb4 {[%emt 0:04:39]} 15. Nac5 {[%emt 0:02:40]} Ne5 {[%emt 0:00:43]} 16. Qd4 {[%emt 0:01:53]} Nc4 {[%emt 0:00:57]} 17. Rac1 {[%emt 0:04:52]} Rac8 {[%emt 0:05:35]} 18. Nd3 {[%emt 0:04:35]} Qb5 {[%emt 0:06:20]} 19. Qh4 {[%emt 0:04:17]} a5 {[%emt 0:04:14]} 20. Nd4 {[%emt 0:02:53]} Qb6 {[%emt 0:04:01]} 21. Rc2 {[%emt 0:04:02]} h6 {[%emt 0:03:44]} 22. e3 {[%emt 0:01:49]} Kh7 {[%emt 0:04:05]} 23. Nxe6 {[%emt 0:04:23]} fxe6 {[%emt 0:02:08]} 24. Rfc1 {[%emt 0:05:52]} Nd6 {[%emt 0:06:52]} 25. Nc5 {[%emt 0:01:59]} Nf5 {[%emt 0:06:02]} 26. Qf4 {[%emt 0:01:40]} Rce8 {[%emt 0:04:26]} 27. Bh3 {[%emt 0:02:03]} g6 {[%emt 0:03:56]} 28. Nxb7 {[%emt 0:03:46]} Re7 {[%emt 0:01:25]} 29. Bxf5 {[%emt 0:04:27]} gxf5 {[%emt 0:01:13]} 30. Nc5 {[%emt 0:00:58]} Rg7 {[%emt 0:02:40]} 31. Qe5 {[%emt 0:01:33]} Re7 {[%emt 0:00:55]} 32. Nd3 {[%emt 0:02:53]} Ng4 {[%emt 0:02:01]} 33. Qd4 {[%emt 0:00:21]} Qb8 {[%emt 0:01:10]} 34. Rc6 {[%emt 0:00:45]} Rg8 {[%emt 0:02:18]} 35. Qb6 {[%emt 0:02:21]} Qe8 {[%emt 0:00:09]} 36. Nf4 {[%emt 0:01:50]} h5 {[%emt 0:01:31]} 37. Rxe6 {[%emt 0:00:46]} 1-0

[Event "43rd Indian-chT 2023-24"]
[Site "Dharamsala"]
[Date "2024.03.30"]
[Round "3.8"]
[White "Aayush Bhojak"]
[Black "Gusain, Himal"]
[Result "0-1"]
[ECO "D02"]
[WhiteElo "1693"]
[BlackElo "2484"]
[Annotator "ChessBase"]
[PlyCount "80"]
[EventDate "2024.03.28"]
[EventType "team-tourn"]
[EventCountry "IND"]
[SourceTitle "playchess.com"]
[Source "ChessBase"]
[SourceQuality "1"]
[TimeControl "5400+30"]

1. d4 {[%emt 0:00:28]} d5 {[%emt 0:00:11]} 2. Bf4 {[%emt 0:00:16]} c5 {[%emt 0:00:54]} 3. e3 {[%emt 0:00:06]} Nf6 {[%emt 0:00:13]} 4. Nf3 {[%emt 0:00:05]} Nc6 {[%emt 0:00:29]} 5. Nbd2 {[%emt 0:00:07]} Nh5 {[%emt 0:00:33]} 6. dxc5 {[%emt 0:04:07]} Nxf4 {[%emt 0:00:37]} 7. exf4 {[%emt 0:00:07]} g6 {[%emt 0:00:09]} 8. Bb5 {[%emt 0:04:12]} Bg7 {[%emt 0:00:47]} 9. c3 {[%emt 0:00:35]} O-O {[%emt 0:00:26]} 10. O-O {[%emt 0:00:32]} Qc7 {[%emt 0:12:21]} 11. Nb3 {[%emt 0:07:42]} Rd8 {[%emt 0:00:43]} 12. Re1 {[%emt 0:04:25]} Bf6 {[%emt 0:02:11]} 13. Qd2 {[%emt 0:13:11]} a5 {[%emt 0:02:25]} 14. Nbd4 {[%emt 0:08:09]} Na7 {[%emt 0:01:32]} 15. Bd3 {[%emt 0:08:31]} Qxc5 {[%emt 0:01:52]} 16. f5 {[%emt 0:08:59]} Kg7 {[%emt 0:00:35]} 17. h4 {[%emt 0:03:14]} Nc6 {[%emt 0:04:29]} 18. Rac1 {[%emt 0:05:08]} Qd6 {[%emt 0:05:18]} 19. g4 {[%emt 0:07:13]} Kg8 {[%emt 0:02:16]} 20. g5 {[%emt 0:01:32]} Bxd4 {[%emt 0:02:47]} 21. cxd4 {[%emt 0:00:12]} Bxf5 {[%emt 0:00:53]} 22. Bxf5 {[%emt 0:00:36]} gxf5 {[%emt 0:00:06]} 23. Ne5 {[%emt 0:03:38]} e6 {[%emt 0:05:02]} 24. h5 {[%emt 0:04:35]} Nxe5 {[%emt 0:02:04]} 25. Rxe5 {[%emt 0:00:27]} Kg7 {[%emt 0:02:30]} 26. Rce1 {[%emt 0:05:55]} Rg8 {[%emt 0:02:39]} 27. Qf4 {[%emt 0:02:26]} Kf8 {[%emt 0:01:53]} 28. Kh1 {[%emt 0:02:47]} Qd8 {[%emt 0:05:47]} 29. g6 {[%emt 0:01:15]} hxg6 {[%emt 0:00:08]} 30. Qh6+ {[%emt 0:00:35]} Ke7 {[%emt 0:03:16]} 31. Qh7 {[%emt 0:00:57]} Ra6 {[%emt 0:00:47]} 32. R1e3 {[%emt 0:02:02]} Rh8 {[%emt 0:00:54]} 33. Qg7 {[%emt 0:00:23]} Rxh5+ {[%emt 0:00:12]} 34. Kg2 {[%emt 0:00:26]} Rg5+ {[%emt 0:03:58]} 35. Kf3 {[%emt 0:01:04]} Rg4 {[%emt 0:01:44]} 36. Rc3 {[%emt 0:01:08]} Re4 {[%emt 0:01:33]} 37. Rxe4 {[%emt 0:00:32]} fxe4+ {[%emt 0:01:16]} 38. Ke3 {[%emt 0:00:46]} Rc6 {[%emt 0:00:11]} 39. Rb3 {[%emt 0:00:24]} Qc7 {[%emt 0:00:43]} 40. Qh8 {[%emt 0:00:51]} g5 {[%emt 0:04:17]} 0-1

[Event "43rd Indian-chT 2023-24"]
[Site "Dharamsala"]
[Date "2024.03.31"]
[Round "4.1"]
[White "Krishna C R G"]
[Black "Shyaamnikhil P"]
[Result "1/2-1/2"]
[ECO "D76"]
[WhiteElo "2445"]
[BlackElo "2405"]
[Annotator "TA"]
[PlyCount "63"]
[EventDate "2024.03.28"]
[EventType "team-tourn"]
[EventCountry "IND"]
[SourceTitle "playchess.com"]
[Source "ChessBase"]
[SourceQuality "1"]
[TimeControl "5400+30"]

{[%evp 19,63,21,37,47,48,31,21,53,43,50,51,72,58,68,61,58,61,64,58,68,61,42,44,55,37,13,20,14,15,13,6,6,7,8,8,7,7,0,0,0,0,0,0,0,0,0]} 1. Nf3 {[%emt 0:00:06]} Nf6 {[%emt 0:00:13]} 2. c4 {[%emt 0:00:23]} g6 {[%emt 0:00:07]} 3. g3 {[%emt 0:00:13]} Bg7 {[%emt 0:00:16]} 4. Bg2 {[%emt 0:00:21]} O-O {[%emt 0:00:10]} 5. O-O {[%emt 0:00:11]} d5 {[%emt 0:00:05]} 6. cxd5 {[%emt 0:00:20]} Nxd5 {[%emt 0:00:07]} 7. d4 {[%emt 0:00:04]} Nb6 {[%emt 0:00:30]} 8. Nc3 {[%emt 0:00:07]} Nc6 {[%emt 0:00:15]} 9. e3 {[%emt 0:00:57]} e5 {[%emt 0:00:20]} 10. d5 {[%emt 0:00:52]} Na5 {[%emt 0:00:11]} 11. b3 {[%emt 0:00:13]} e4 {[%emt 0:00:14]} 12. Nd4 $1 {[%emt 0:00:09] Ba3 is the strong threat.} Nxd5 {[%emt 0:00:08]} 13. Nxe4 {[%emt 0:00:18]} b6 {[%emt 0:00:11][%cal Bb7b6,Bb6c5,Bc5b4,Bb4b3][%mdl 32] [#]} 14. b4 {[%emt 0:01:04]} Nxb4 {[%emt 0:00:09]} 15. Ba3 $1 {[%emt 0:01:01]} c5 {[%emt 0:01:08] [#]} 16. Nxc5 {[%emt 0:00:35]} bxc5 {[%emt 0:01:04]} 17. Bxa8 {[%emt 0:00:12] And now Bxb4 would win.} Ba6 $1 {[%emt 0:00:35]} 18. Bg2 {[%emt 0:00:51][%cal Oa3b4] Bxb4! would now be deadly.} Bxf1 {[%emt 0:00:54]} 19. Bxf1 {[%emt 0:00:03]} Nb7 {[%emt 0:00:31]} 20. Bxb4 {[%emt 0:00:48][%cal Of1g2] Threatens to win with Bg2!} (20. Bg2 {is more complex.} a5 21. Bxb4 axb4 22. Nc6) 20... Bxd4 {[%emt 0:00:30]} 21. exd4 {[%emt 0:00:14]} cxb4 {[%emt 0:00:06]} 22. Rb1 {[%emt 0:00:39]} Qa5 {[%emt 0:00:59] The position is equal.} 23. Qd2 {[%emt 0:00:38]} b3 {[%emt 0:01:01]} 24. Qxa5 {[%emt 0:00:20]} Nxa5 {[%emt 0:00:05][%cal Bb7a5,Ba5c6,Bc6d4][%mdl 32]} 25. axb3 $11 {[%emt 0:00:03][%cal Ba2b3,Bb3b4][%mdl 4128] Endgame. KRB-KRN} Rd8 {[%emt 0:00:26]} 26. b4 {[%emt 0:00:10]} Nc6 {[%emt 0:00:08]} 27. b5 {[%emt 0:00:06]} Nxd4 {[%emt 0:00:04]} 28. Ra1 {[%emt 0:00:05]} Rd7 {[%emt 0:00:10]} 29. Kg2 {[%emt 0:00:09]} Rb7 {[%emt 0:00:05]} 30. Ra4 {[%emt 0:00:03]} Nxb5 {[%emt 0:00:04]} 31. Bxb5 {[%emt 0:00:04]} Rxb5 {[%emt 0:00:05]} 32. Rxa7 {[%emt 0:00:04] Weighted Error Value: White=0.03 (flawless) /Black=0.01 (flawless) .  OK:         	White=8     	Black=13     Best:        	---       	Black=2      Strong:       	White=2     	Black=1      Brilliant:      	White=1     	---} 1/2-1/2